[Event "Swedish U16 Team Championship 2019 - Final"]
[Site "Molnlycke Kulturhus, Biblioteksgatan 2, Molnlycke, Sweden"]
[Date "2019.08.17"]
[Round "3.15"]
[White "Nord, Alexander"]
[Black "Nordin, Marcus 2007"]
[Result "1-0"]
[TimeControl "90 minutes + 30 seconds per move from move one."]
[WhiteElo "1881"]
[BlackElo "1162"]

1. d4 {[%clk 01:30:59]} e6 {[%clk 01:23:49]} {[%emt 00:07:11]} 2. Nf3 {[%clk
01:31:25]} {[%emt 00:00:04]} d5 {[%clk 01:20:59]} {[%emt 00:03:21]} 3. g3
{[%clk 01:31:45]} {[%emt 00:00:09]} b6 {[%clk 01:19:15]} {[%emt 00:02:14]} 4.
Bg2 {[%clk 01:32:05]} {[%emt 00:00:09]} Bb7 {[%clk 01:16:12]} {[%emt 00:03:34]}
5. O-O {[%clk 01:32:27]} {[%emt 00:00:08]} Na6 {[%clk 01:12:07]} {[%emt
00:04:35]} 6. c4 {[%clk 01:32:10]} {[%emt 00:00:47]} c6 {[%clk 01:09:39]}
{[%emt 00:02:58]} 7. a3 {[%clk 01:27:11]} {[%emt 00:05:29]} Nc7 {[%clk
01:06:12]} {[%emt 00:03:57]} 8. Qc2 {[%clk 01:27:11]} {[%emt 00:00:30]} Qd7
{[%clk 01:05:04]} {[%emt 00:01:39]} 9. Ne5 {[%clk 01:21:14]} {[%emt 00:06:26]}
Qe7 {[%clk 01:03:12]} {[%emt 00:02:14]} 10. cxd5 {[%clk 01:21:05]} {[%emt
00:00:47]} cxd5 {[%clk 01:00:51]} {[%emt 00:02:52]} 11. Nc3 {[%clk 01:20:36]}
{[%emt 00:00:59]} O-O-O {[%clk 00:59:55]} {[%emt 00:01:25]} 12. Nb5 {[%clk
01:18:45]} {[%emt 00:02:20]} Kb8 {[%clk 00:58:30]} {[%emt 00:01:55]} 13. Bf4
{[%clk 01:14:24]} {[%emt 00:04:52]} f6 {[%clk 00:53:24]} {[%emt 00:05:37]} 14.
Nc6+ {[%clk 01:13:42]} {[%emt 00:01:11]} Bxc6 {[%clk 00:53:08]} {[%emt
00:00:45]} 15. Bxc7+ {[%clk 01:13:09]} {[%emt 00:01:03]} Kb7 {[%clk 00:53:11]}
{[%emt 00:00:28]} 16. Bxd8 {[%clk 01:12:13]} {[%emt 00:01:26]} Qxd8 {[%clk
00:53:28]} {[%emt 00:00:13]} 17. Nc3 {[%clk 01:10:19]} {[%emt 00:02:23]} Nh6
{[%clk 00:52:31]} {[%emt 00:01:27]} 18. Rac1 {[%clk 01:10:23]} {[%emt
00:00:25]} Qd6 {[%clk 00:51:56]} {[%emt 00:01:07]} 19. e4 dxe4 {[%clk
00:50:17]} 20. Nxe4 {[%clk 01:09:27]} {[%emt 00:00:18]} Qd5 {[%clk 00:49:35]}
{[%emt 00:01:12]} 21. Nc5+ {[%clk 01:09:34]} {[%emt 00:00:23]} bxc5 {[%clk
00:48:47]} {[%emt 00:01:18]} 22. Bxd5 {[%clk 01:10:01]} {[%emt 00:00:03]} exd5
{[%clk 00:48:53]} {[%emt 00:00:24]} 23. Rfe1 {[%clk 01:09:52]} {[%emt
00:00:37]} c4 {[%clk 00:48:23]} {[%emt 00:01:01]} 24. Rb1 {[%clk 01:09:25]}
{[%emt 00:00:56]} Ka8 {[%clk 00:48:06]} {[%emt 00:00:48]} 25. b3 Bxa3 {[%clk
00:47:08]} 26. bxc4 {[%clk 01:09:38]} {[%emt 00:00:03]} Bd6 {[%clk 00:46:51]}
{[%emt 00:00:45]} 27. Re6 {[%clk 01:09:41]} {[%emt 00:00:26]} Nf7 {[%clk
00:46:38]} {[%emt 00:00:45]} 28. c5 {[%clk 01:09:57]} {[%emt 00:00:14]} Bd7
{[%clk 00:45:03]} {[%emt 00:02:05]} 29. Rxd6 {[%clk 01:10:19]} {[%emt
00:00:08]} Nxd6 {[%clk 00:45:19]} {[%emt 00:00:15]} 30. cxd6 {[%clk 01:10:48]}
{[%emt 00:00:01]} Rc8 {[%clk 00:44:59]} {[%emt 00:00:50]} 31. Qb2 {[%clk
01:10:49]} {[%emt 00:00:28]} Bc6 {[%clk 00:45:13]} {[%emt 00:00:18]} 32. d7
{[%clk 01:10:41]} {[%emt 00:00:38]} Rd8 {[%clk 00:45:33]} {[%emt 00:00:10]} 33.
Qb4 {[%clk 01:10:44]} {[%emt 00:00:27]} a6 {[%clk 00:42:47]} {[%emt 00:03:17]}
34. Qb6 {[%clk 01:11:06]} {[%emt 00:00:06]} Bb5 {[%clk 00:41:28]} {[%emt
00:01:50]} 35. Qxd8+ {[%clk 01:11:26]} {[%emt 00:00:10]} Ka7 {[%clk 00:41:49]}
{[%emt 00:00:09]} 36. Qc7+ {[%clk 01:11:50]} {[%emt 00:00:05]} Ka8 {[%clk
00:41:11]} {[%emt 00:01:08]} 37. d8=Q# {[%clk 01:12:13]} {[%emt 00:00:07]} 1-0

[Event "Swedish U16 Team Championship 2019 - Final"]
[Site "Molnlycke Kulturhus, Biblioteksgatan 2, Molnlycke, Sweden"]
[Date "2019.08.17"]
[Round "3.17"]
[White "Morell, Ludvig"]
[Black "Lyngsjo, Luke"]
[Result "1-0"]
[TimeControl "90 minutes + 30 seconds per move from move one."]
[WhiteElo "1771"]
[BlackElo "1107"]

1. e4 {[%clk 01:30:59]} e5 {[%clk 01:30:46]} {[%emt 00:00:14]} 2. Nf3 {[%clk
01:31:01]} {[%emt 00:00:28]} Nf6 {[%clk 01:30:48]} {[%emt 00:00:29]} 3. Nxe5
{[%clk 01:31:20]} {[%emt 00:00:11]} d6 {[%clk 01:31:06]} {[%emt 00:00:12]} 4.
Nf3 {[%clk 01:31:47]} {[%emt 00:00:03]} Nxe4 {[%clk 01:31:29]} {[%emt
00:00:07]} 5. Nc3 {[%clk 01:32:12]} {[%emt 00:00:04]} Nxc3 {[%clk 01:31:09]}
{[%emt 00:00:50]} 6. dxc3 {[%clk 01:32:36]} {[%emt 00:00:06]} Be7 {[%clk
01:31:17]} {[%emt 00:00:22]} 7. Be3 {[%clk 01:32:59]} {[%emt 00:00:05]} O-O
{[%clk 01:31:24]} {[%emt 00:00:25]} 8. Qd2 {[%clk 01:33:01]} {[%emt 00:00:28]}
Be6 {[%clk 01:28:54]} {[%emt 00:03:00]} 9. Bd3 {[%clk 01:31:57]} {[%emt
00:01:34]} Nc6 {[%clk 01:26:55]} {[%emt 00:02:29]} 10. h4 {[%clk 01:30:35]}
{[%emt 00:01:53]} Ne5 {[%clk 01:25:06]} {[%emt 00:02:19]} 11. O-O-O {[%clk
01:25:07]} {[%emt 00:05:57]} Nxd3+ {[%clk 01:22:10]} {[%emt 00:03:27]} 12. Qxd3
{[%clk 01:25:12]} {[%emt 00:00:24]} a5 {[%clk 01:08:06]} {[%emt 00:14:34]} 13.
Ng5 {[%clk 01:21:23]} {[%emt 00:04:19]} Bxg5 {[%clk 01:05:25]} {[%emt
00:03:11]} 14. hxg5 {[%clk 01:21:42]} {[%emt 00:00:11]} g6 {[%clk 01:05:34]}
{[%emt 00:00:21]} 15. Kb1 {[%clk 01:20:04]} {[%emt 00:02:07]} f5 {[%clk
01:01:51]} {[%emt 00:04:13]} 16. Bd4 {[%clk 01:19:15]} {[%emt 00:01:19]} c5
{[%clk 01:01:37]} {[%emt 00:00:44]} 17. Bf6 {[%clk 01:19:20]} {[%emt 00:00:24]}
Rxf6 {[%clk 01:01:56]} {[%emt 00:00:12]} 18. gxf6 {[%clk 01:19:43]} {[%emt
00:00:08]} Qxf6 {[%clk 01:02:00]} {[%emt 00:00:26]} 19. Qxd6 {[%clk 01:19:14]}
{[%emt 00:00:59]} Rc8 {[%clk 00:56:23]} {[%emt 00:06:08]} 20. Rhe1 {[%clk
01:17:15]} {[%emt 00:02:28]} Rc6 {[%clk 00:55:57]} {[%emt 00:00:56]} 21. Qd8+
{[%clk 01:17:25]} {[%emt 00:00:20]} Qxd8 {[%clk 00:55:55]} {[%emt 00:00:32]} 22.
Rxd8+ {[%clk 01:17:54]} {[%emt 00:00:01]} Kg7 {[%clk 00:56:01]} {[%emt
00:00:23]} 23. b3 {[%clk 01:18:04]} {[%emt 00:00:20]} b5 {[%clk 00:55:50]}
{[%emt 00:00:42]} 24. Rb8 {[%clk 01:18:08]} {[%emt 00:00:26]} b4 {[%clk
00:55:55]} {[%emt 00:00:25]} 25. c4 {[%clk 01:18:29]} {[%emt 00:00:08]} Kf6
{[%clk 00:55:38]} {[%emt 00:00:47]} 26. Ra8 {[%clk 01:18:35]} {[%emt 00:00:24]}
1-0

[Event "Swedish U16 Team Championship 2019 - Final"]
[Site "Molnlycke Kulturhus, Biblioteksgatan 2, Molnlycke, Sweden"]
[Date "2019.08.17"]
[Round "4.1"]
[White "Rasti, Arvin"]
[Black "Sorensen, Hampus"]
[Result "1/2-1/2"]
[TimeControl "90 minutes + 30 seconds per move from move one."]
[BlackTitle "FM"]
[WhiteElo "2116"]
[BlackElo "2356"]

1. d4 {[%clk 01:30:18]} {[%emt 00:00:41]} d5 {[%clk 01:30:41]} {[%emt
00:00:19]} 2. c4 {[%clk 01:30:31]} {[%emt 00:00:18]} c6 {[%clk 01:29:37]}
{[%emt 00:01:34]} 3. cxd5 {[%clk 01:30:44]} {[%emt 00:00:17]} cxd5 {[%clk
01:29:51]} {[%emt 00:00:16]} 4. Bf4 {[%clk 01:31:09]} {[%emt 00:00:05]} Nc6
{[%clk 01:27:58]} {[%emt 00:02:22]} 5. e3 {[%clk 01:31:38]} {[%emt 00:00:02]}
Nf6 {[%clk 01:27:42]} {[%emt 00:00:46]} 6. Nc3 {[%clk 01:31:48]} {[%emt
00:00:20]} a6 {[%clk 01:26:40]} {[%emt 00:01:32]} 7. Rc1 {[%clk 01:31:48]}
{[%emt 00:00:31]} Bg4 {[%clk 01:23:09]} {[%emt 00:04:01]} 8. Be2 {[%clk
01:30:23]} {[%emt 00:01:54]} Bxe2 {[%clk 01:23:02]} {[%emt 00:00:37]} 9. Ngxe2
{[%clk 01:30:29]} {[%emt 00:00:25]} e6 {[%clk 01:22:44]} {[%emt 00:00:48]} 10.
O-O {[%clk 01:29:14]} {[%emt 00:01:44]} Be7 {[%clk 01:21:22]} {[%emt 00:01:52]}
11. Na4 {[%clk 01:22:31]} {[%emt 00:07:13]} Nd7 {[%clk 01:17:06]} {[%emt
00:04:46]} 12. Qb3 {[%clk 01:14:53]} {[%emt 00:08:07]} Na5 {[%clk 01:08:26]}
{[%emt 00:09:12]} 13. Qc3 {[%clk 01:10:14]} {[%emt 00:05:08]} Nc4 {[%clk
01:07:10]} {[%emt 00:01:46]} 14. Qd3 {[%clk 01:00:09]} {[%emt 00:10:36]} O-O
{[%clk 01:04:36]} {[%emt 00:03:04]} 15. b3 {[%clk 00:54:29]} {[%emt 00:06:11]}
Nd6 {[%clk 01:04:39]} {[%emt 00:00:27]} 16. Rc2 {[%clk 00:53:00]} {[%emt
00:01:59]} Rc8 {[%clk 01:02:10]} {[%emt 00:02:59]} 17. Rfc1 {[%clk 00:47:30]}
{[%emt 00:06:00]} Rxc2 {[%clk 01:01:00]} {[%emt 00:01:40]} 18. Rxc2 {[%clk
00:46:59]} {[%emt 00:01:01]} Qa5 {[%clk 00:57:39]} {[%emt 00:03:50]} 19. Qc3
{[%clk 00:41:43]} {[%emt 00:05:46]} Qxc3 {[%clk 00:55:21]} {[%emt 00:02:50]} 20.
Rxc3 {[%clk 00:41:31]} {[%emt 00:00:42]} Nb5 {[%clk 00:54:52]} {[%emt
00:00:58]} 21. Rc2 {[%clk 00:38:47]} {[%emt 00:03:13]} Ra8 {[%clk 00:51:57]}
{[%emt 00:03:25]} 22. Nb2 {[%clk 00:30:40]} {[%emt 00:08:37]} Bd8 {[%clk
00:47:08]} {[%emt 00:05:20]} 23. Rc1 {[%clk 00:26:17]} {[%emt 00:04:52]} Kf8
{[%clk 00:46:08]} {[%emt 00:01:30]} 24. a4 {[%clk 00:24:02]} {[%emt 00:02:45]}
Na7 {[%clk 00:46:06]} {[%emt 00:00:33]} 25. Kf1 {[%clk 00:22:58]} {[%emt
00:01:33]} Rc8 {[%clk 00:46:12]} {[%emt 00:00:24]} 26. Rxc8 {[%clk 00:22:53]}
{[%emt 00:00:36]} Nxc8 {[%clk 00:46:39]} {[%emt 00:00:02]} 27. Ke1 {[%clk
00:22:43]} {[%emt 00:00:40]} Ke7 {[%clk 00:44:54]} {[%emt 00:02:15]} 28. f3
{[%clk 00:21:47]} {[%emt 00:01:26]} Na7 {[%clk 00:44:29]} {[%emt 00:00:55]} 29.
Nd3 {[%clk 00:19:43]} {[%emt 00:02:34]} Nc6 {[%clk 00:43:10]} {[%emt 00:01:49]}
30. Kd2 {[%clk 00:16:36]} {[%emt 00:03:36]} Ba5+ {[%clk 00:41:55]} {[%emt
00:01:45]} 31. Kc2 {[%clk 00:16:35]} {[%emt 00:00:32]} f6 {[%clk 00:41:14]}
{[%emt 00:01:10]} 32. e4 {[%clk 00:13:03]} {[%emt 00:04:02]} dxe4 {[%clk
00:29:04]} {[%emt 00:12:41]} 33. fxe4 {[%clk 00:13:31]} {[%emt 00:00:02]} e5
{[%clk 00:29:18]} {[%emt 00:00:16]} 34. d5 {[%clk 00:08:50]} {[%emt 00:05:11]}
Nb4+ {[%clk 00:23:39]} {[%emt 00:06:09]} 35. Nxb4 {[%clk 00:09:03]} {[%emt
00:00:17]} Bxb4 {[%clk 00:24:05]} {[%emt 00:00:05]} 36. Be3 {[%clk 00:06:27]}
{[%emt 00:03:06]} Bc5 {[%clk 00:24:10]} {[%emt 00:00:24]} 37. Bd2 {[%clk
00:06:10]} {[%emt 00:00:48]} g6 {[%clk 00:24:12]} {[%emt 00:00:28]} 38. b4
{[%clk 00:05:08]} {[%emt 00:01:33]} Bf2 {[%clk 00:24:11]} {[%emt 00:00:29]} 39.
g4 {[%clk 00:04:58]} {[%emt 00:00:41]} Nb6 {[%clk 00:23:32]} {[%emt 00:01:08]}
40. Kb3 {[%clk 00:04:46]} {[%emt 00:00:43]} Kd7 {[%clk 00:22:33]} {[%emt
00:01:29]} 41. a5 {[%clk 00:03:19]} {[%emt 00:01:58]} Nc8 {[%clk 00:22:40]}
{[%emt 00:00:21]} 42. Nc3 {[%clk 00:02:29]} {[%emt 00:01:20]} Nd6 {[%clk
00:21:38]} {[%emt 00:01:32]} 43. Kc2 {[%clk 00:02:33]} {[%emt 00:00:26]} Bd4
{[%clk 00:19:08]} {[%emt 00:02:59]} 44. Kd3 {[%clk 00:02:39]} {[%emt 00:00:25]}
Bxc3 {[%clk 00:19:23]} {[%emt 00:00:15]} 45. Bxc3 {[%clk 00:03:08]} {[%emt
00:00:01]} Nf7 {[%clk 00:09:42]} {[%emt 00:10:11]} 46. Bd2 {[%clk 00:02:57]}
{[%emt 00:00:41]} h5 {[%clk 00:08:40]} {[%emt 00:01:32]} 47. h3 {[%clk
00:02:42]} {[%emt 00:00:45]} hxg4 {[%clk 00:07:48]} {[%emt 00:01:23]} 48. hxg4
{[%clk 00:03:08]} {[%emt 00:00:04]} g5 {[%clk 00:07:13]} {[%emt 00:01:05]} 49.
Ke2 {[%clk 00:03:23]} {[%emt 00:00:15]} Nh6 {[%clk 00:05:31]} {[%emt 00:02:12]}
50. Kf3 {[%clk 00:03:52]} Nf7 {[%clk 00:05:17]} {[%emt 00:00:45]} 51. Be3
{[%clk 00:04:04]} {[%emt 00:00:18]} Nd6 {[%clk 00:05:28]} {[%emt 00:00:20]}
1/2-1/2

[Event "Swedish U16 Team Championship 2019 - Final"]
[Site "Molnlycke Kulturhus, Biblioteksgatan 2, Molnlycke, Sweden"]
[Date "2019.08.17"]
[Round "4.2"]
[White "Trost, Edvin"]
[Black "Lindholm, Gustav"]
[Result "0-1"]
[TimeControl "90 minutes + 30 seconds per move from move one."]
[WhiteElo "1951"]
[BlackElo "2006"]

1. e4 {[%clk 01:30:46]} {[%emt 00:00:13]} d5 {[%clk 01:30:51]} {[%emt
00:00:10]} 2. exd5 {[%clk 01:31:01]} {[%emt 00:00:15]} Qxd5 {[%clk 01:31:12]}
{[%emt 00:00:08]} 3. Nc3 {[%clk 01:31:27]} {[%emt 00:00:04]} Qd6 {[%clk
01:31:32]} {[%emt 00:00:09]} 4. d4 {[%clk 01:31:40]} {[%emt 00:00:17]} Nf6
{[%clk 01:31:55]} {[%emt 00:00:08]} 5. Nf3 {[%clk 01:32:05]} {[%emt 00:00:06]}
c6 {[%clk 01:32:00]} {[%emt 00:00:25]} 6. Ne5 {[%clk 01:32:18]} {[%emt
00:00:16]} Nbd7 {[%clk 01:32:22]} {[%emt 00:00:08]} 7. Nc4 {[%clk 01:32:41]}
{[%emt 00:00:08]} Qc7 {[%clk 01:32:44]} {[%emt 00:00:08]} 8. Qf3 {[%clk
01:33:01]} {[%emt 00:00:10]} Nb6 {[%clk 01:32:35]} {[%emt 00:00:38]} 9. Bf4
{[%clk 01:32:54]} {[%emt 00:00:30]} Qd7 {[%clk 01:32:44]} {[%emt 00:00:29]} 10.
Be5 {[%clk 01:13:40]} {[%emt 00:19:45]} Qg4 {[%clk 01:24:02]} {[%emt 00:09:11]}
11. Qe3 {[%clk 01:12:32]} {[%emt 00:01:38]} Nxc4 {[%clk 01:14:11]} {[%emt
00:10:21]} 12. Bxc4 {[%clk 01:13:00]} {[%emt 00:00:02]} Qxg2 {[%clk 01:11:13]}
{[%emt 00:03:28]} 13. O-O-O {[%clk 01:11:13]} {[%emt 00:02:17]} Ng4 {[%clk
01:04:30]} {[%emt 00:07:14]} 14. Qf4 {[%clk 01:10:45]} {[%emt 00:00:56]} f6
{[%clk 00:48:08]} {[%emt 00:16:54]} 15. Rhg1 {[%clk 01:03:59]} {[%emt
00:07:15]} Qh3 {[%clk 00:37:04]} {[%emt 00:11:34]} 16. f3 {[%clk 00:52:45]}
{[%emt 00:11:44]} g5 {[%clk 00:32:05]} {[%emt 00:05:29]} 17. Qd2 {[%clk
00:46:02]} {[%emt 00:07:15]} Qxf3 {[%clk 00:23:06]} {[%emt 00:09:27]} 18. Be2
{[%clk 00:39:54]} {[%emt 00:06:38]} Qe3 {[%clk 00:19:40]} {[%emt 00:03:58]} 19.
Bxg4 {[%clk 00:39:22]} {[%emt 00:00:59]} Qxd2+ {[%clk 00:19:56]} {[%emt
00:00:16]} 20. Rxd2 {[%clk 00:39:16]} {[%emt 00:00:37]} Bxg4 {[%clk 00:19:53]}
{[%emt 00:00:32]} 21. Rxg4 {[%clk 00:37:44]} {[%emt 00:02:02]} fxe5 {[%clk
00:20:06]} {[%emt 00:00:17]} 22. dxe5 {[%clk 00:36:51]} {[%emt 00:01:24]} Bg7
{[%clk 00:10:08]} {[%emt 00:10:28]} 23. e6 {[%clk 00:30:09]} {[%emt 00:07:12]}
Rd8 {[%clk 00:08:59]} {[%emt 00:01:38]} 24. Ne4 {[%clk 00:25:50]} {[%emt
00:04:49]} Rxd2 {[%clk 00:04:02]} {[%emt 00:05:27]} 25. Nxd2 {[%clk 00:26:19]}
{[%emt 00:00:01]} h6 {[%clk 00:02:34]} {[%emt 00:01:58]} 26. c3 {[%clk
00:04:07]} {[%emt 00:22:42]} O-O {[%clk 00:02:13]} {[%emt 00:00:51]} 27. Rg2
{[%clk 00:04:33]} {[%emt 00:00:04]} Be5 {[%clk 00:01:33]} {[%emt 00:01:10]} 28.
Kc2 {[%clk 00:04:07]} {[%emt 00:00:56]} Kh7 {[%clk 00:00:49]} {[%emt 00:01:13]}
29. Nc4 {[%clk 00:04:18]} {[%emt 00:00:20]} Bc7 {[%clk 00:00:51]} {[%emt
00:00:28]} 30. Kd3 {[%clk 00:02:07]} {[%emt 00:02:41]} Rf3+ {[%clk 00:00:42]}
{[%emt 00:00:39]} 31. Ke4 {[%clk 00:02:09]} {[%emt 00:00:28]} Rf4+ {[%clk
00:01:04]} {[%emt 00:00:08]} 32. Kd3 {[%clk 00:02:36]} {[%emt 00:00:03]} Rh4
{[%clk 00:01:21]} {[%emt 00:00:13]} 33. Rf2 {[%clk 00:02:58]} {[%emt 00:00:08]}
Bf4 {[%clk 00:01:15]} {[%emt 00:00:35]} 34. Na5 {[%clk 00:02:48]} {[%emt
00:00:40]} Rxh2 {[%clk 00:00:52]} {[%emt 00:00:54]} 35. Rxh2 {[%clk 00:02:55]}
{[%emt 00:00:23]} Bxh2 {[%clk 00:01:16]} {[%emt 00:00:05]} 36. Nxb7 {[%clk
00:03:20]} {[%emt 00:00:05]} Bc7 {[%clk 00:01:02]} {[%emt 00:00:44]} 37. Nc5
{[%clk 00:03:04]} {[%emt 00:00:47]} Kg6 {[%clk 00:00:52]} {[%emt 00:00:40]} 38.
Ke4 {[%clk 00:03:28]} {[%emt 00:00:07]} Kf6 {[%clk 00:00:45]} {[%emt 00:00:36]}
39. b4 {[%clk 00:03:47]} {[%emt 00:00:10]} Bb6 {[%clk 00:00:40]} {[%emt
00:00:35]} 40. Nd7+ {[%clk 00:03:31]} {[%emt 00:00:47]} Kxe6 {[%clk 00:00:55]}
{[%emt 00:00:15]} 41. Nb8 {[%clk 00:04:00]} c5 {[%clk 00:00:50]} {[%emt
00:00:35]} 42. b5 {[%clk 00:04:30]} h5 {[%clk 00:00:55]} {[%emt 00:00:25]} 43.
Nc6 {[%clk 00:04:55]} {[%emt 00:00:05]} h4 {[%clk 00:00:41]} {[%emt 00:00:45]}
44. a4 {[%clk 00:05:23]} {[%emt 00:00:01]} h3 {[%clk 00:00:35]} {[%emt
00:00:36]} 45. Kf3 {[%clk 00:05:52]} {[%emt 00:00:01]} g4+ {[%clk 00:00:34]}
{[%emt 00:00:31]} 46. Kg3 {[%clk 00:05:42]} {[%emt 00:00:40]} c4 {[%clk
00:00:39]} {[%emt 00:00:24]} 47. a5 {[%clk 00:05:57]} {[%emt 00:00:15]} Bc5
{[%clk 00:00:44]} {[%emt 00:00:25]} 48. a6 {[%clk 00:05:48]} {[%emt 00:00:39]}
Bd6+ {[%clk 00:00:50]} {[%emt 00:00:25]} 49. Kf2 {[%clk 00:06:09]} {[%emt
00:00:09]} g3+ {[%clk 00:00:59]} {[%emt 00:00:21]} 50. Kf1 {[%clk 00:06:32]}
{[%emt 00:00:07]} g2+ {[%clk 00:01:18]} {[%emt 00:00:11]} 51. Kg1 {[%clk
00:07:00]} {[%emt 00:00:03]} Bc5+ {[%clk 00:01:39]} {[%emt 00:00:09]} 52. Nd4+
{[%clk 00:07:26]} {[%emt 00:00:04]} Kd7 {[%clk 00:01:33]} {[%emt 00:00:35]} 53.
Kh2 {[%clk 00:07:50]} {[%emt 00:00:07]} Bxd4 {[%clk 00:01:52]} {[%emt
00:00:11]} 54. cxd4 {[%clk 00:08:14]} {[%emt 00:00:06]} Kc7 {[%clk 00:02:14]}
{[%emt 00:00:08]} 55. d5 {[%clk 00:08:37]} {[%emt 00:00:07]} c3 {[%clk
00:02:38]} {[%emt 00:00:06]} 56. d6+ {[%clk 00:08:56]} {[%emt 00:00:10]} exd6
{[%clk 00:03:02]} {[%emt 00:00:06]} 57. b6+ {[%clk 00:09:23]} {[%emt 00:00:04]}
Kxb6 {[%clk 00:03:22]} {[%emt 00:00:09]} 58. Kg3 {[%clk 00:09:49]} {[%emt
00:00:04]} g1=Q+ {[%clk 00:03:37]} {[%emt 00:00:15]} 59. Kf4 {[%clk 00:10:18]}
{[%emt 00:00:01]} Qe1 {[%clk 00:03:44]} {[%emt 00:00:23]} 60. Kf5 {[%clk
00:10:41]} {[%emt 00:00:08]} h2 {[%clk 00:04:04]} {[%emt 00:00:10]} 61. Kf4
{[%clk 00:11:03]} {[%emt 00:00:09]} h1=R {[%clk 00:04:16]} {[%emt 00:00:17]} 62.
Kg4 {[%clk 00:11:26]} {[%emt 00:00:07]} 0-1

[Event "Swedish U16 Team Championship 2019 - Final"]
[Site "Molnlycke Kulturhus, Biblioteksgatan 2, Molnlycke, Sweden"]
[Date "2019.08.17"]
[Round "4.3"]
[White "Strom-Engdahl, Alexander"]
[Black "Svetic, Matija"]
[Result "1/2-1/2"]
[TimeControl "90 minutes + 30 seconds per move from move one."]
[WhiteElo "1858"]
[BlackElo "1775"]

1. c4 {[%clk 01:30:14]} {[%emt 00:00:44]} c5 {[%clk 01:30:47]} {[%emt
00:00:13]} 2. Nc3 {[%clk 01:30:36]} {[%emt 00:00:09]} Nc6 {[%clk 01:30:52]}
{[%emt 00:00:25]} 3. g3 {[%clk 01:30:53]} {[%emt 00:00:13]} e5 {[%clk
01:30:44]} {[%emt 00:00:38]} 4. Bg2 {[%clk 01:31:00]} {[%emt 00:00:23]} g6
{[%clk 01:30:45]} {[%emt 00:00:29]} 5. d3 {[%clk 01:31:15]} {[%emt 00:00:15]}
Bg7 {[%clk 01:30:36]} {[%emt 00:00:38]} 6. e3 {[%clk 01:30:54]} {[%emt
00:00:52]} Nge7 {[%clk 01:30:25]} {[%emt 00:00:41]} 7. Nge2 {[%clk 01:30:56]}
{[%emt 00:00:28]} d6 {[%clk 01:30:10]} {[%emt 00:00:45]} 8. Rb1 {[%clk
01:29:02]} {[%emt 00:02:23]} a5 {[%clk 01:30:01]} {[%emt 00:00:40]} 9. a3
{[%clk 01:29:04]} {[%emt 00:00:28]} Be6 {[%clk 01:26:21]} {[%emt 00:04:10]} 10.
Nd5 {[%clk 01:28:17]} {[%emt 00:01:17]} Rb8 {[%clk 01:23:14]} {[%emt 00:03:37]}
11. Nec3 {[%clk 01:24:52]} {[%emt 00:03:54]} O-O {[%clk 01:17:12]} {[%emt
00:06:32]} 12. Bd2 {[%clk 01:24:41]} {[%emt 00:00:41]} f5 {[%clk 01:14:02]}
{[%emt 00:03:40]} 13. O-O {[%clk 01:23:37]} {[%emt 00:01:34]} Bf7 {[%clk
00:54:59]} {[%emt 00:19:32]} 14. b4 {[%clk 01:20:28]} {[%emt 00:03:40]} axb4
{[%clk 00:54:59]} {[%emt 00:00:30]} 15. axb4 {[%clk 01:20:47]} {[%emt
00:00:11]} b6 {[%clk 00:54:25]} {[%emt 00:01:04]} 16. b5 {[%clk 01:17:50]}
{[%emt 00:03:27]} Nxd5 {[%clk 00:48:44]} {[%emt 00:06:11]} 17. Nxd5 {[%clk
01:17:56]} {[%emt 00:00:24]} Ne7 {[%clk 00:48:48]} {[%emt 00:00:26]} 18. Nxe7+
{[%clk 01:16:24]} {[%emt 00:02:02]} Qxe7 {[%clk 00:49:06]} {[%emt 00:00:12]} 19.
Qb3 {[%clk 01:11:48]} {[%emt 00:05:05]} Rfd8 {[%clk 00:47:33]} {[%emt
00:02:04]} 20. Bc3 {[%clk 01:11:56]} {[%emt 00:00:22]} f4 {[%clk 00:29:57]}
{[%emt 00:18:06]} 21. exf4 {[%clk 01:08:56]} {[%emt 00:03:30]} exf4 {[%clk
00:30:13]} {[%emt 00:00:14]} 22. Rfe1 {[%clk 01:08:16]} {[%emt 00:01:09]} Qg5
{[%clk 00:30:03]} {[%emt 00:00:40]} 23. Bxg7 {[%clk 00:50:57]} {[%emt
00:17:50]} Kxg7 {[%clk 00:30:15]} {[%emt 00:00:17]} 24. Qc3+ {[%clk 00:51:19]}
{[%emt 00:00:09]} Qf6 {[%clk 00:27:01]} {[%emt 00:03:45]} 25. Qxf6+ {[%clk
00:50:07]} {[%emt 00:01:42]} Kxf6 {[%clk 00:27:23]} {[%emt 00:00:08]} 26. Re4
{[%clk 00:50:13]} {[%emt 00:00:24]} fxg3 {[%clk 00:21:06]} {[%emt 00:06:47]} 27.
fxg3 {[%clk 00:50:33]} {[%emt 00:00:09]} Re8 {[%clk 00:21:17]} {[%emt
00:00:19]} 28. Rf1+ {[%clk 00:49:12]} {[%emt 00:01:51]} Kg7 {[%clk 00:21:39]}
{[%emt 00:00:08]} 29. Ref4 {[%clk 00:49:05]} {[%emt 00:00:38]} Re7 {[%clk
00:20:55]} {[%emt 00:01:13]} 30. Rf6 {[%clk 00:49:02]} {[%emt 00:00:34]} Rd8
{[%clk 00:21:10]} {[%emt 00:00:14]} 31. g4 {[%clk 00:40:56]} {[%emt 00:08:37]}
1/2-1/2